Cogmind - Beta 13 @@@ ROGUE MODE // 2024.04.09 @ 23:51:10 Player: Miwa Result: Self-destructed Performance ------------- Evolutions (1) 500 Regions Visited (2) 400 Robots Destroyed (20) 100 Value Destroyed (409) 409 Prototype IDs (2) 40 Alien Tech Used (0) 0 Bonus (0) 0 TOTAL SCORE: 1449 Bonus ------- None Cogmind --------- Core Integrity 96/400 Matter 300/300 Energy 265/265 System Corruption 0% Temperature Cool (0) Movement Rolling (115) Ox1 Location -9/Materials Parts ------- > --- POWER (1) -------- Reinforced Ion Engine > --- PROPULSION (3) --- Compact Wheel > --- UTILITY (3) ------ Small Storage Unit Signal Interpreter > --- WEAPON (2) ------- Maul > --- INVENTORY (8) ---- Reinforced Ion Engine Reinforced Ion Engine Hover Unit Flight Unit Visual Processing Unit Flail Peak State ------------ > --- POWER ------------ Reinforced Ion Engine > --- PROPULSION ------- Wheel Compact Wheel Compact Wheel > --- UTILITY ---------- Small Storage Unit Sensor Array Signal Interpreter > --- WEAPON ----------- Assault Rifle Maul > --- INVENTORY -------- Reinforced Ion Engine Reinforced Ion Engine Hover Unit Flight Unit Visual Processing Unit Flail [Rating: 12] Favorites ----------- Power Ion Engine Engine Ion Engine Propulsion Compact Wheel Wheel Compact Wheel Utility Small Storage Unit Device Sensor Array Storage Small Storage Unit Processor Signal Interpreter Weapon Assault Rifle Ballistic Gun Assault Rifle Impact Weapon Flail Build | -11 -10 -9 ------- Run | Yrd Mat Mat Slots Evolved 2 | . . 2 Power . | . . . Propulsion 1 | . . 1 Utility 1 | . . 1 Weapon . | . . . Parts Attached 19 | 7 5 7 Power 2 | 1 . 1 Engine 2 | 1 . 1 Core . | . . . Reactor . | . . . Propulsion 6 | 2 1 3 Treads . | . . . Leg . | . . . Wheel 6 | 2 1 3 Hover . | . . . Flight . | . . . Utility 4 | 2 1 1 Device 2 | 1 1 . Storage 1 | 1 . . Processor 1 | . . 1 Hackware . | . . . Protection . | . . . Artifact . | . . . Weapon 7 | 2 3 2 Energy Gun . | . . . Energy Cannon . | . . . Ballistic Gun 4 | 2 1 1 Ballistic Cannon . | . . . Launcher . | . . . Special Weapon . | . . . Impact Weapon 3 | . 2 1 Slashing Weapon . | . . . Piercing Weapon . | . . . Special Melee Weapon . | . . . Unidentified Prototypes . | . . . Parts Lost 8 | . 1 7 Power . | . . . Propulsion 5 | . 1 4 Utility 1 | . . 1 Weapon 2 | . . 2 Highest Loss Streak 6 | . 1 6 To Critical Strikes . | . . . Average Slot Usage (%) 88 | . 99 71 Engine 12 | . 14 11 Wheel 22 | . 27 15 Device 11 | . 14 6 Storage 12 | . 14 11 Processor 4 | . . 11 Ballistic Gun 14 | . 19 5 Impact Weapon 9 | . 8 11 Naked Turns . | . . . Heaviest Build 21 | 15 15 21 Greatest Support 42 | 32 32 42 Greatest Overweight (x) 5 | . . 5 Average Overweight (x) . | . . . Largest Inventory Capacity 8 | 8 8 8 Average Capacity 7 | 7 8 8 Most Carried 8 | 5 7 8 Average Carried 4 | 2 4 6 Final Capacity 8 | 8 8 8 Final Carried 7 | 2 7 6 Class Distribution -------------------- 100% | Mutant Dominant Class ---------------- Mutant | -10/Materials Mutant | -9/Materials Resources | -11 -10 -9 ----------- Run | Yrd Mat Mat Matter Collected 598 | 318 171 109 Remotely . | . . . Salvage Created 677 | 147 171 359 Parts 34 | 9 13 12 Haulers Intercepted . | . . . Recyclers Shooed . | . . . Parts Field Recycled . | . . . Retrieved Matter . | . . . Parts Self-Destructed . | . . . Prevented . | . . . Kills | -11 -10 -9 ------- Run | Yrd Mat Mat Combat Hostiles Destroyed 10 | . 5 5 Melee 2 | . . 2 Guns 5 | . 5 . Classes Destroyed 8 | 3 4 1 Worker 1 | 1 . . Tunneler 2 | 2 . . Recycler 3 | 1 . 2 Operator 1 | . 1 . Watcher 3 | . 2 1 Swarmer 3 | . 3 . Grunt 3 | . 2 1 Sentry 4 | . . 4 Best Kill Streak 5 | 3 3 5 Combat Bots Only 4 | . 3 4 Max Kills in Single Turn 1 | 1 1 1 Gunslinging . | . . . Exploded . | . . . Melee 1 | . . 1 Uniques/NPCs Destroyed . | . . . Combat | -11 -10 -9 -------- Run | Yrd Mat Mat Hostile Shots Fired 114 | . 36 78 Missed 20 | . 6 14 Damage Taken 1117 | . 284 833 Core 368 | . 64 304 Absorbed by Shields . | . . . Core Remaining (%) 87 | 100 74 . Volleys Fired 58 | 8 41 9 Largest 2 | 2 2 1 Hottest 40 | 40 40 20 Shots Fired 81 | 16 56 9 Gun 81 | 16 56 9 Cannon . | . . . Launcher . | . . . Special . | . . . Kinetic 81 | 16 56 9 Thermal . | . . . Explosive . | . . . Electromagnetic . | . . . Robot Hit Streak 11 | 5 11 8 Robot Miss Streak 5 | 2 5 1 Penetration Max . | . . . Secondary Targets . | . . . Shots Hit Robots 64 | 9 33 22 Core Hits 21 | 5 12 4 Critical Kills 1 | . . 1 Critical Parts Destroyed 6 | . . 6 Critical Strikes 7 | . . 7 Smash 7 | . . 7 Melee Attacks 21 | . 1 20 Impact 21 | . 1 20 Slashing . | . . . Piercing . | . . . Sneak Attacks 2 | . . 2 Combat Hostiles . | . . . Follow-up Attacks . | . . . Damage Inflicted 1212 | 146 451 615 Guns 658 | 146 408 104 Cannons . | . . . Explosions . | . . . Melee 554 | . 43 511 Ramming . | . . . Kinetic 658 | 146 408 104 Thermal . | . . . Explosive . | . . . Electromagnetic . | . . . Impact 554 | . 43 511 Slashing . | . . . Piercing . | . . . Highest Corruption 2 | . 2 . Average Corruption 2 | . 2 . Corruption Purged . | . . . Corruption Blocked . | . . . Overload Shots . | . . . Overflow Damage 247 | . . 247 Projectiles . | . . . Explosions . | . . . Melee 247 | . . 247 Knockbacks 1 | . . 1 Impact 1 | . . 1 Kinetic . | . . . Secondary . | . . . Self-Inflicted Damage . | . . . Shots . | . . . Rammed . | . . . Targets Rammed . | . . . Kicked . | . . . Crushed . | . . . Highest Temperature . | . . . Average Temperature . | . . . Received Heat Transfer 345 | . 108 237 Siege Activations . | . . . Robots Corrupted . | . . . Combat Hostiles . | . . . Parts Fried 5 | . . 5 Impact Corruptions 10 | . . 10 Robots Melted . | . . . Combat Hostiles . | . . . Parts Melted . | . . . Heat Transferred . | . . . Parts Sabotaged . | . . . Parts Stolen . | . . . Parts Stripped . | . . . Power Chain Reactions . | . . . Alert | -11 -10 -9 ------- Run | Yrd Mat Mat Peak Influence 247 | 20 247 139 Initial 13 | . 13 2 Average 102 | 6 161 50 Maximum Alert Level 1 | . 1 . Low Security (%) 75 | 100 53 100 Level 1 24 | . 46 . Level 2 . | . . . Level 3 . | . . . Level 4 . | . . . Level 5 . | . . . High Security . | . . . Max Security . | . . . Squads Dispatched 2 | . 1 1 Investigation 1 | . . 1 Extermination . | . . . Reinforcement 1 | . 1 . Assault . | . . . Garrison . | . . . Intercept . | . . . Searches Triggered . | . . . Construction Impeded . | . . . Haulers Reinforced . | . . . Active Scanning Responses . | . . . Cargo Convoy Interrupts . | . . . Stealth | -11 -10 -9 --------- Run | Yrd Mat Mat Distress Signals 2 | . 1 1 Communications Jammed . | . . . Distress Signals . | . . . Times Spotted 31 | . 14 17 Peak Tracking Total 7 | . 4 7 Tactical Retreats 3 | . 2 1 Traps | -11 -10 -9 ------- Run | Yrd Mat Mat Traps Triggered 1 | . 1 . Indirectly . | . . . Trap Hack Attempts . | . . . Triggered . | . . . Disarmed . | . . . Reprogrammed . | . . . Reused . | . . . Traps Extracted . | . . . Installed . | . . . Triggered . | . . . Machines | -11 -10 -9 ---------- Run | Yrd Mat Mat Machines Disabled . | . . . Max in Single Turn . | . . . Machines Repaired . | . . . Machines Dismantled . | . . . Machines Sabotaged . | . . . Overloaded Fab Kills . | . . . Hacking | -11 -10 -9 --------- Run | Yrd Mat Mat Machines Accessed 5 | . 4 1 Terminals 5 | . 4 1 Fabricators . | . . . Repair Stations . | . . . Recycling Units . | . . . Scanalyzers . | . . . Garrison Access . | . . . Total Hacks 16 | . 12 4 Successful 11 | . 10 1 Failed 5 | . 2 3 Catastrophic 2 | . 1 1 Database Lockouts . | . . . Manual 3 | . . 3 Terminals 16 | . 12 4 Fabricators . | . . . Repair Stations . | . . . Recycling Units . | . . . Scanalyzers . | . . . Garrison Access . | . . . Terminal Hacks 11 | . 10 1 Robot Analysis 1 | . . 1 Prototype ID Bank 1 | . 1 . Emergency Access Points 1 | . 1 . Terminal Index 1 | . 1 . Alert Level 1 | . 1 . Unreport Threat 2 | . 2 . Hauler Manifests 1 | . 1 . Registered Components 1 | . 1 . Zone Layout 2 | . 2 . Fabricator Hacks . | . . . Repair Station Hacks . | . . . Recycling Unit Hacks . | . . . Scanalyzer . | . . . Garrison Access Hacks . | . . . Unauthorized Hacks . | . . . Terminals . | . . . Fabricators . | . . . Repair Stations . | . . . Recycling Units . | . . . Scanalyzers . | . . . Garrison Access . | . . . Data Cores Recovered . | . . . Used . | . . . Hacking Detections 4 | . 3 1 Full Trace Events 1 | . . 1 Feedback Events . | . . . Feedback Blocked . | . . . Robot Schematics Acquired . | . . . Robots Built . | . . . Authchips . | . . . Time . | . . . Total Robot Build Rating . | . . . Part Schematics Acquired . | . . . Parts Built . | . . . Authchips . | . . . Time . | . . . Total Part Build Rating . | . . . Parts Repaired . | . . . Time . | . . . Parts Recycled . | . . . Recycled Matter . | . . . Retrieved Matter . | . . . Retrieved Components . | . . . Parts Scanalyzed . | . . . Part Schematics Acquired . | . . . Parts Damaged . | . . . Bothacking | -11 -10 -9 ------------ Run | Yrd Mat Mat Used RIF Installer . | . . . Robots Hacked . | . . . Non-combat . | . . . Combat . | . . . Robot Hacks Applied . | . . . Relay Couplers Released . | . . . Fabnet Peak Effective % . | . . . Robots Rewired . | . . . Allies Hacked . | . . . Hacks Repelled . | . . . Allies | -11 -10 -9 -------- Run | Yrd Mat Mat Total Allies . | . . . Largest Group . | . . . Highest-Rated Group . | . . . Highest-Rated Ally . | . . . Total Orders . | . . . Ally Attacks . | . . . Total Damage . | . . . Kills . | . . . Allies Corrupted . | . . . Allies Melted . | . . . Intel | -11 -10 -9 ------- Run | Yrd Mat Mat Robot Analysis Total 1 | . . 1 Derelict Logs Recovered . | . . . Drone Launches . | . . . Drone Recoveries . | . . . Exploration | -11 -10 -9 ------------- Run | Yrd Mat Mat Turns Passed 818 | 123 429 266 Spaces Moved 516 | 87 281 148 Core 15 | 7 . 8 Treads . | . . . Legs . | . . . Wheels 501 | 80 281 140 Hover . | . . . Flight . | . . . Fastest Speed 50 | 50 100 93 Average Speed 102 | 95 100 112 Slowest Speed 300 | 100 100 300 Overloaded Moves . | . . . Propulsion Burnouts . | . . . Robots Hopped . | . . . Cave-ins Triggered . | . . . Exploration Rate (%) 17 | 4 32 16 Regions Visited 2 Branch Regions . Pre-discovered Areas . | . . . Known Exits Taken . | . . . Unknown Exits Taken 2 | 1 1 . Scrap Searched . | . . . Spaces Dug . | . . . Terrain Destroyed . | . . . Melee . | . . . Projectile . | . . . AOE . | . . . Terrain Rammed . | . . . Walls Destroyed . | . . . Machines Disabled . | . . . Actions | -11 -10 -9 --------- Run | Yrd Mat Mat Total 679 | 110 370 199 Wait 36 | . 33 3 Move 514 | 86 280 148 Hop . | . . . Pick Up 25 | 9 8 8 Fast Attach . | . . . Attach 13 | 7 1 5 Detach . | . . . Swap 6 | . 4 2 Drop 6 | . 2 4 Fire 58 | 8 41 9 Melee 21 | . 1 20 Ram . | . . . Kick . | . . . Crush . | . . . Escape Stasis . | . . . Rewire . | . . . Trap . | . . . Miscellaneous . | . . . Route ------- -11/Scrapyard -10/Materials -9/Materials History --------- Turn | Location | Event 5 | -11/Scrapyard | Discovered new exit (range 16) 124 | -11/Scrapyard | Entered Materials 319 | -10/Materials | Build established: Mutant 547 | -10/Materials | Discovered new exit (range 8) 553 | -10/Materials | Entered another Materials area 553 | -9/Materials | Evolved 2 slots: Propulsion x1, Utility x1 719 | -9/Materials | Core integrity fell below 50% 737 | -9/Materials | Lost 6 parts (3n1u2w) 819 | -9/Materials | Self-destructed Last Messages --------------- Destroyed Heat Sink. Y-45 Defender system corrupted by crushing effect. Com. Wheel destroyed. Y-45 Defender suffers critical hit (Smash). Destroyed Beam Rifle. Y-45 Defender system corrupted by crushing effect. Y-45 Defender system terminally corrupted. Imp. Ion Engine fried. R-06 Scavenger collects Corrupted Lgt. Treads. Sneak attack on R-06 Scavenger. Destroyed Lgt. Ion Engine. R-06 Scavenger system corrupted by crushing effect. Tractor Beam fried. R-06 Scavenger destroyed. C-30 ARC bursts open, deploying its payload. G-47 Trooper unfolds itself. G-34 Mercenary unfolds itself. Destroyed Flight Unit. S-10 Pest system corrupted by crushing effect. K-01 Serf collects debris. Map ----- +----------------------------------------------------+ | ?????????????????????????????????????????????????? | | ?????????????????????????????????????????????????? | | ?????????????????????????????????????????????????? | | ?????????????????????????????????????????????????? | | ?????????????????????????????????????????????????? | | ?????????????????????????????????????????????????? | | ?????????????????????????????????????????????????? | | ?????????????????????????????????????????????????? | | ?????????????????????????????????????????????????? | | ?????????????????????????????????????????????????? | | ?????????????????????????????????????????????????? | | ?????????????????????????????????????????????????? | | ?????????????????????????????????????????????????? | | ?????????????????????????????????????????????????? | | ?????????????????????????????????????????????????? | | ??????????????????????????#######????????????????? | | ?????????????????????####?# ###??????????????? | | ????????????????????? ? ???????????????? | | ?????????????????????? ?? ???????????????? | | ?????????????????????? % ?? ????????????????? | | ????????????????????###+### ?????????????????? | | ????????????????????# g ## #?????????????????? | | ????????????????????# """ ## #?????????????????? | | ????????????????????# "Y" ## #?????????????????? | | ????????????????????#ss sg## #?????????????????? | | ????????????????????# @## #?????????????????? | | ????????????????????# s%= +?????????????????? | | ????????????????????# ! ##= #?????????????????? | | ????????????????????######## #?????????????????? | | ???????????????????#########[= #?????????????????? | | ???????????????????# !!!=#%=!#?????????????????? | | ???????????????????# !!!%+%! #?#####???????????? | | ???????????????????# !!!*#[= ###"T"############# | | ???????????????????# *#[ [] + | | ???????????????????######### [] ### "" | | ????????????????????? ??# """ "## "" | | ????????????????????? ?# R" T## "" | | ????????????????????? """ ?# ]! """ "## | | ?????????????????????""""" # ]! ### "" | | ?????????????????????""""" # ] # "" | | ?????????????????????""""" + / "" | | ???????????????????? """ # # | | ???????????????????# ## ###### ####### # | | ???????????????????# ??# #????# #?????# # * | | ???????????????????# ??# #????#+####### # ** | | ???????????????????# ???# #????# ## # ** | | ???????????????????# ####???# #????#""" / ## ##### | | ???????????????????#???????? ????#""" ## #?? | | ???????????????????????????? ????#""" ## #?? | | ???????????????????????????? ????# ## #?? | +----------------------------------------------------+ Best States ------------- Heat Dissipation 28 Energy Generation 12 Energy Capacity 265 Matter Stores 300 Matter Capacity 300 Sight Range 16 Robot Scan Range 14 Terrain Scan Range 16 Terrain Scan Density 10 Evasion (%) 50 Item Schematics ----------------- None Robot Schematics ------------------ None Fabricated ------------ Nothing Alien Tech Used ----------------- None Achievements -------------- None Challenges ------------ None Game ------ Seed MeleeHeavyOptics Manual? 0 Play Time 00:14:55 Cumulative 31.0 hours Start 2024.04.09 @ 23:36:21 End 2024.04.09 @ 23:51:10 Sessions 1 Manual Loads 0 Difficulty Rogue Special Mode None Game No. 45 Rogue 45 Adventurer 0 Explorer 0 Win Type - Total 0 Types 0/0/0/0/0/0/0/0/0 Lore% 26 Gallery% 28 Achievement% 28 Wizard Run 0 Options --------- Layout 1 ASCII 0 Keyboard 0 Movement Mouse Keybinds 0 Fullscreen 1 Font 28/SmallcapsGlow Map View 55x47 Zoom Use 0% Tactical HUD 0 Map Filters NONE Filters NONE Steam 1 RUN: 6c202bd7-86b8-4519-9cb0-faeabc3cf612